bitfinex-derivatives/quotes_BTCF0:USTF0_20240913
["timestamp","ask_amount","ask_price","bid_price","bid_amount"]
[1726265780324,0.08264,60470.0,60467.0,0.082644]
[1726265780519,0.03192454,60469.0,60467.0,0.082644]
[1726265780715,0.08264,60470.0,60467.0,0.082644]
[1726265780921,0.03192468,60469.0,60467.0,0.082644]
[1726265781117,0.39272617,60468.0,60467.0,0.082644]
[1726265782016,0.39272617,60468.0,60467.0,1.539564]
[1726265782017,0.03192617,60468.0,60467.0,1.539564]
[1726265782216,0.11526919,60477.0,60476.0,0.082631]
[1726265782427,0.11526919,60478.0,60476.0,0.082631]
[1726265782820,0.3608,60479.0,60476.0,0.082631]
[1726265782821,0.47606919,60479.0,60476.0,0.082631]
[1726265783421,0.11526919,60478.0,60476.0,0.082631]
[1726265783622,0.11526919,60478.0,60476.0,0.083631]
[1726265783921,0.47606919,60479.0,60476.0,0.083631]
[1726265784121,0.009,60479.0,60476.0,0.084631]
[1726265784323,0.009,60479.0,60476.0,0.002]
[1726265784716,0.009,60479.0,60478.0,0.082629]
[1726265784918,0.47606919,60485.0,60478.0,0.082629]
[1726265785716,0.3608,60485.0,60478.0,0.082629]
[1726265786121,0.3608,60485.0,60477.0,0.0492]
[1726265786337,0.443419,60485.0,60482.0,0.082623]
[1726265786528,0.55868819,60485.0,60482.0,0.082623]
[1726265786715,0.443419,60485.0,60482.0,0.082623]
[1726265787130,0.3608,60485.0,60484.0,0.082621]
[1726265788022,0.3698,60485.0,60484.0,0.082621]
[1726265788628,0.3698,60485.0,60484.0,0.083621]
[1726265788823,0.452419,60485.0,60484.0,0.083621]
[1726265789224,0.452419,60485.0,60484.0,0.002]
[1726265791426,0.452419,60485.0,60474.0,0.40854]
[1726265791427,0.082633,60475.0,60474.0,0.00084]
[1726265791629,0.082636,60473.0,60472.0,0.086536]
[1726265791833,0.082636,60473.0,60472.0,0.082636]
[1726265792035,0.082639,60471.0,60468.0,0.0482]
[1726265792221,0.082639,60471.0,60468.0,0.05332203]
[1726265792832,0.082637,60473.0,60472.0,0.001]
[1726265793528,0.082637,60473.0,60470.0,0.08264]
[1726265794023,0.087637,60473.0,60470.0,0.08264]
[1726265794224,0.082637,60472.0,60470.0,0.08264]
[1726265794422,0.005,60473.0,60472.0,0.082637]
[1726265794628,0.11521717,60484.0,60478.0,0.082629]
[1726265794831,0.56503733,60479.0,60478.0,0.082629]
[1726265795132,0.43318608,60479.0,60478.0,0.082629]
[1726265796127,0.56503561,60479.0,60478.0,0.082629]
[1726265796629,0.03191995,60479.0,60478.0,0.082629]
[1726265797132,0.04291995,60479.0,60478.0,0.084629]
[1726265797729,0.04291995,60479.0,60478.0,0.08977248]
[1726265799527,0.04091995,60479.0,60478.0,1.26844148]
[1726265799724,0.011,60479.0,60478.0,1.26844148]
[1726265799925,0.11526181,60488.0,60487.0,0.082616]
[1726265800129,0.129208,60494.0,60488.0,0.082615]
[1726265800130,0.11526181,60489.0,60488.0,0.082615]
[1726265800340,0.04045914,60489.0,60488.0,0.082615]
[1726265800533,0.3608,60497.0,60491.0,0.082611]
[1726265800534,0.11523514,60492.0,60491.0,0.082611]
[1726265800729,0.11523514,60494.0,60491.0,0.6]
[1726265800929,0.11523514,60495.0,60494.0,0.082607]
[1726265801129,0.11523514,60496.0,60495.0,0.082606]
[1726265801329,0.04045256,60496.0,60495.0,0.082606]
[1726265801533,0.3608,60497.0,60495.0,0.082606]
[1726265801935,0.082591,60506.0,60491.0,0.3608]
[1726265802133,0.47594806,60507.0,60491.0,0.3608]
[1726265802329,0.3608,60507.0,60500.0,0.082598]
[1726265802634,0.3608,60507.0,60501.0,0.082597]
[1726265802838,0.3608,60507.0,60502.0,0.49584]
[1726265803135,0.3608,60507.0,60473.0,0.082635]
[1726265803329,0.3608,60507.0,60466.0,0.10646292]
[1726265803330,0.3608,60432.0,60426.0,0.08150816]
[1726265803524,0.3608,60432.0,60381.0,0.16351261]
[1726265803525,0.3608,60413.0,60373.0,0.3608]
[1726265803728,0.082664,60452.0,60373.0,0.3608]
[1726265803729,0.082705,60423.0,60411.0,0.15441967]
[1726265803922,0.16509224,60445.0,60373.0,0.3608]
[1726265803923,0.082721,60411.0,60381.0,0.3608]
[1726265804133,0.3608,60403.0,60388.0,0.3608]
[1726265804325,0.3608,60412.0,60399.0,0.3608]
[1726265804527,0.3608,60415.0,60399.0,0.3608]
[1726265804528,0.3608,60410.0,60400.0,0.0929]
[1726265804732,0.3468,60410.0,60400.0,0.0929]
[1726265806340,0.001,60412.0,60405.0,0.3608]
[1726265806635,0.3608,60411.0,60406.0,0.4966]
[1726265806938,0.3608,60411.0,60407.0,0.4966]
[1726265806939,0.001,60410.0,60407.0,0.4966]
[1726265807145,0.3608,60411.0,60406.0,0.49664]
[1726265807335,0.211,60411.0,60406.0,0.49664]
[1726265807640,0.211,60411.0,60407.0,0.4966]
[1726265807837,0.001,60412.0,60407.0,0.4966]
[1726265808138,0.001,60412.0,60408.0,0.4966]
[1726265808333,0.001,60412.0,60408.0,1.0966]
[1726265808541,0.001,60412.0,60409.0,0.4966]
[1726265808737,0.001,60412.0,60410.0,0.3608]
[1726265808938,0.3608,60416.0,60410.0,0.8574]
[1726265809235,0.3608,60416.0,60411.0,0.4966]
[1726265809425,0.3608,60416.0,60412.0,0.49656]
[1726265809633,0.3608,60416.0,60410.0,0.36164]
[1726265809832,0.3608,60416.0,60373.0,0.865]
[1726265809833,0.3608,60411.0,60406.0,0.002]
[1726265810028,0.3608,60411.0,60410.0,0.001]
[1726265810332,0.3618,60416.0,60410.0,0.4976]
[1726265810636,0.3628,60416.0,60410.0,0.001]
[1726265811031,0.3618,60416.0,60410.0,0.001]
[1726265812133,0.001,60411.0,60406.0,0.003]
[1726265812925,0.3618,60416.0,60407.0,0.4966]
[1726265813132,0.3618,60416.0,60410.0,0.007]
[1726265813635,0.3608,60416.0,60410.0,0.007]
[1726265813936,0.001,60411.0,60408.0,0.00096]
[1726265814141,0.001,60411.0,60406.0,0.007]
[1726265814940,0.001,60411.0,60410.0,0.007]
[1726265815243,0.3608,60416.0,60410.0,0.007]
[1726265815435,0.3618,60416.0,60410.0,0.007]
[1726265815631,0.3608,60411.0,60410.0,0.007]
[1726265816150,0.3618,60411.0,60410.0,0.007]
[1726265816439,0.3618,60411.0,60406.0,0.007]
[1726265816946,0.3618,60411.0,60403.0,0.08845681]
[1726265817337,0.3608,60411.0,60405.0,0.082728]
[1726265817534,0.3618,60411.0,60405.0,0.082728]
[1726265817743,0.3618,60411.0,60408.0,0.082723]
[1726265817935,0.3618,60411.0,60409.0,0.082723]
[1726265818139,0.3608,60421.0,60420.0,0.082708]
[1726265820038,0.3618,60421.0,60420.0,0.086708]
[1726265820238,0.3618,60421.0,60420.0,0.004]
[1726265820536,0.805307,60421.0,60420.0,0.004]
[1726265820736,0.805307,60421.0,60420.0,0.005]
[1726265821443,0.3628,60421.0,60420.0,0.087708]
[1726265821846,0.001,60421.0,60420.0,0.580228]
[1726265822147,0.0039,60469.0,60421.0,0.082706]
[1726265822350,0.0039,60469.0,60420.0,0.00570518]
[1726265822351,0.11399471,60539.0,60531.0,0.3608]
[1726265822546,0.14656463,60579.0,60538.0,0.3608]
[1726265822843,0.29535924,60539.0,60538.0,0.3608]
[1726265823449,1.09556,60539.0,60512.0,0.3608]
[1726265823748,0.014,60539.0,60525.0,0.3608]
[1726265823946,0.014,60539.0,60515.0,0.0084]
[1726265823947,0.3608,60535.0,60515.0,0.0084]
[1726265824136,0.3608,60535.0,60512.0,0.3608]
[1726265824137,0.0943,60534.0,60512.0,0.3608]
[1726265824739,0.3608,60533.0,60512.0,0.3608]
[1726265824942,0.0943,60534.0,60512.0,0.3608]
[1726265825346,0.3608,60532.0,60512.0,0.3718]
[1726265825538,0.0943,60534.0,60513.0,0.082581]
[1726265826250,0.0943,60534.0,60512.0,0.3768]
[1726265826251,0.3608,60530.0,60512.0,0.3768]
[1726265826547,0.3608,60516.0,60505.0,0.0084]
[1726265826747,0.3608,60516.0,60488.0,0.082614]
[1726265826748,0.3608,60506.0,60489.0,0.3608]
[1726265826954,0.3608,60498.0,60489.0,0.3608]
[1726265827152,0.3608,60498.0,60483.0,0.3608]
[1726265827153,0.0481,60497.0,60483.0,0.3608]
[1726265827353,0.3608,60492.0,60475.0,0.3608]
[1726265827841,0.3608,60492.0,60489.0,0.014]
[1726265828549,0.0481,60497.0,60491.0,0.3608]
[1726265829350,0.001,60492.0,60489.0,0.001]
[1726265829848,0.001,60492.0,60491.0,0.3608]
[1726265830054,0.0491,60497.0,60491.0,0.3618]
[1726265830237,0.001,60492.0,60491.0,0.3618]
[1726265830647,0.0491,60497.0,60491.0,0.3618]
[1726265830850,0.001,60492.0,60491.0,0.3618]
[1726265831452,0.001,60492.0,60491.0,0.3678]
[1726265831653,0.002,60492.0,60491.0,0.3678]
[1726265833251,0.002,60492.0,60491.0,0.3668]
[1726265833653,0.002,60492.0,60491.0,0.3698]
[1726265834751,0.001,60492.0,60491.0,0.3608]
[1726265834955,0.002,60492.0,60491.0,0.3718]
[1726265836355,0.0464,60505.0,60491.0,1.46572]
[1726265836560,0.0464,60505.0,60504.0,0.082593]
[1726265837357,0.0464,60505.0,60504.0,0.081593]
[1726265837661,0.0474,60505.0,60504.0,0.081593]
[1726265837863,0.0474,60505.0,60502.0,0.3608]
[1726265838054,0.001,60505.0,60503.0,0.082593]
[1726265839257,0.045,60515.0,60511.0,0.082583]
[1726265839568,0.045,60515.0,60512.0,0.3608]
[1726265839957,0.045,60515.0,60512.0,0.443382]
[1726265840472,0.048,60515.0,60512.0,0.443382]
[1726265840766,0.049,60515.0,60512.0,0.443382]
[1726265840962,0.046,60515.0,60513.0,0.082581]
[1726265841167,0.051,60515.0,60513.0,0.082581]
[1726265842171,0.051,60515.0,60514.0,0.08258]
[1726265842367,0.3608,60541.0,60529.0,0.082559]
[1726265842561,0.3608,60541.0,60514.0,0.6]
[1726265842562,0.082563,60526.0,60523.0,0.3608]
[1726265842868,0.3608,60530.0,60523.0,0.3608]
[1726265843167,0.3608,60530.0,60516.0,0.3608]
[1726265843168,0.0498,60525.0,60517.0,0.082574]
[1726265843371,0.2748,60524.0,60501.0,0.00555965]
[1726265843570,0.082605,60496.0,60463.0,0.0084]
[1726265843867,0.3608,60464.0,60452.0,0.082663]
[1726265844057,0.3608,60453.0,60434.0,0.082689]
[1726265844260,0.3608,60442.0,60428.0,0.3608]
[1726265844560,0.3608,60455.0,60433.0,0.3608]
[1726265844962,0.3608,60460.0,60443.0,0.3608]
[1726265845159,0.0457,60463.0,60448.0,0.3608]
[1726265845561,0.3608,60460.0,60448.0,0.3608]
[1726265846273,0.3608,60461.0,60448.0,0.3608]
[1726265846572,0.0457,60463.0,60448.0,0.3628]
[1726265847572,0.3608,60461.0,60448.0,0.3628]
[1726265847766,0.3608,60461.0,60448.0,0.3648]
[1726265848072,0.3608,60461.0,60448.0,0.3658]
[1726265848558,0.3608,60461.0,60448.0,0.005]
[1726265848559,0.3608,60453.0,60448.0,0.005]
[1726265848762,0.3608,60453.0,60436.0,0.3608]
[1726265849073,0.3608,60453.0,60443.0,0.3608]
[1726265849675,0.3608,60453.0,60448.0,0.007]
[1726265849861,0.3608,60453.0,60436.0,0.3608]
[1726265850363,0.3638,60453.0,60443.0,0.3608]
[1726265850769,0.3608,60453.0,60443.0,0.3608]
[1726265850968,0.3668,60453.0,60448.0,0.001]
[1726265851472,0.082667,60450.0,60436.0,0.3608]
[1726265852266,0.3618,60453.0,60436.0,0.3608]
[1726265852466,0.3618,60453.0,60424.0,0.0083]
[1726265852467,0.3668,60453.0,60447.0,0.3608]
[1726265852669,0.001,60450.0,60449.0,0.082667]
[1726265853068,0.001,60450.0,60447.0,0.3608]
[1726265853569,0.001,60450.0,60447.0,0.3618]
[1726265854466,0.011,60453.0,60447.0,0.3618]
[1726265854973,0.011,60453.0,60447.0,0.001]
[1726265855182,0.3608,60448.0,60447.0,0.001]
[1726265856670,0.3608,60448.0,60420.0,0.082708]
[1726265856671,0.49636,60447.0,60420.0,0.082708]
[1726265856873,0.9708,60448.0,60415.0,0.3608]
[1726265856874,0.3608,60432.0,60417.0,0.082711]
[1726265857279,0.3608,60432.0,60415.0,0.3608]
[1726265857467,0.3608,60432.0,60421.0,0.082706]
[1726265857672,0.3608,60432.0,60415.0,0.3608]
[1726265857673,0.3608,60432.0,60422.0,0.082705]
[1726265857872,0.3618,60432.0,60423.0,0.082704]
[1726265858073,0.3608,60427.0,60424.0,0.082702]
[1726265858271,0.3608,60425.0,60424.0,0.082702]
[1726265858471,0.3618,60432.0,60424.0,0.082702]
[1726265858676,0.3608,60432.0,60425.0,0.082701]
[1726265859578,0.3608,60432.0,60415.0,0.3608]
[1726265859579,0.3608,60426.0,60415.0,0.3608]
[1726265859786,0.3608,60426.0,60425.0,0.082701]
[1726265859975,0.3608,60426.0,60425.0,0.083701]
[1726265860772,0.3718,60432.0,60425.0,0.001]
[1726265860773,0.3608,60431.0,60425.0,0.001]
[1726265861285,0.011,60426.0,60425.0,0.083701]
[1726265862678,0.006,60431.0,60425.0,0.3618]
[1726265862985,0.006,60431.0,60430.0,0.082694]
[1726265863174,0.0462,60436.0,60435.0,0.082688]
[1726265863378,0.3608,60438.0,60430.0,0.3608]
[1726265863581,0.3608,60447.0,60444.0,0.082675]
[1726265863782,0.3608,60447.0,60430.0,0.3608]
[1726265863783,0.3608,60447.0,60446.0,0.082672]
[1726265865176,0.3748,60447.0,60446.0,0.082672]
[1726265865381,0.014,60447.0,60446.0,0.082672]
[1726265866783,0.028,60447.0,60446.0,0.527144]
[1726265867089,0.028,60447.0,60446.0,0.444472]
[1726265867288,0.049,60453.0,60452.0,0.082664]
[1726265868987,0.004,60453.0,60452.0,0.082664]
[1726265869578,0.018,60453.0,60452.0,0.083664]
[1726265870393,0.025,60453.0,60452.0,0.083664]
[1726265871082,0.025,60453.0,60452.0,0.527128]
[1726265872090,0.011,60453.0,60452.0,0.526128]
[1726265872290,0.025,60453.0,60452.0,0.527128]
[1726265872685,0.011,60453.0,60452.0,0.526128]
[1726265872889,0.025,60453.0,60452.0,0.527128]
[1726265873398,0.025,60453.0,60452.0,0.609792]
[1726265873793,0.3608,60463.0,60462.0,0.082651]
[1726265873990,0.39272755,60463.0,60462.0,0.082651]
[1726265875481,0.40672755,60463.0,60462.0,0.082651]
[1726265876195,0.40672755,60463.0,60462.0,0.083651]
[1726265876196,0.3778,60463.0,60462.0,0.083651]
[1726265876585,0.40972787,60463.0,60462.0,0.001]
[1726265877086,0.3778,60463.0,60462.0,0.001]
[1726265877591,0.460449,60463.0,60462.0,0.001]
[1726265878089,0.453449,60463.0,60462.0,0.002]
[1726265878495,0.949609,60463.0,60452.0,0.3608]
[1726265878699,0.082663,60454.0,60445.0,0.3608]
[1726265879200,0.082663,60453.0,60449.0,0.082668]
[1726265879493,0.082663,60453.0,60450.0,0.082667]
[1726265879695,0.082664,60452.0,60451.0,0.082665]
[1726265880394,0.082664,60452.0,60445.0,0.3608]
[1726265880395,0.082671,60448.0,60446.0,0.082672]
[1726265881192,0.3608,60452.0,60442.0,0.082678]
[1726265881598,0.082666,60451.0,60446.0,0.003]
[1726265881801,0.130966,60451.0,60446.0,0.003]
[1726265881994,0.082671,60447.0,60446.0,0.003]
[1726265882490,0.082667,60450.0,60446.0,0.003]
[1726265882690,0.082667,60450.0,60448.0,0.082669]
[1726265884091,0.083667,60450.0,60448.0,0.082669]
[1726265884492,0.001,60450.0,60449.0,0.082668]
[1726265884892,0.03693425,60450.0,60448.0,0.001]
[1726265885093,0.005,60450.0,60448.0,0.001]
[1726265885399,0.001,60450.0,60449.0,0.082668]
[1726265885594,0.005,60450.0,60449.0,0.082668]
[1726265885795,0.03693288,60450.0,60449.0,0.082668]
[1726265885995,0.005,60450.0,60449.0,0.082668]
[1726265886399,0.004,60450.0,60449.0,0.082668]
[1726265886599,0.19605391,60457.0,60451.0,0.082665]
[1726265886804,0.03193233,60456.0,60451.0,0.082665]
[1726265887097,0.03193233,60455.0,60452.0,0.082664]
[1726265887295,0.082659,60457.0,60452.0,0.082664]
[1726265887296,0.03193233,60454.0,60452.0,0.082664]
[1726265887492,0.39273233,60453.0,60452.0,0.082664]
[1726265888093,0.082664,60452.0,60448.0,0.001]
[1726265888299,0.03193233,60451.0,60448.0,0.001]
[1726265888501,0.03193233,60451.0,60450.0,0.082667]
[1726265888697,0.3608,60453.0,60449.0,0.001]
[1726265888905,0.03193221,60452.0,60449.0,0.001]
[1726265889102,0.3608,60453.0,60451.0,0.082664]
[1726265889307,0.0319329,60452.0,60451.0,0.082664]
[1726265890200,0.14532781,60452.0,60451.0,0.082664]
[1726265890410,0.14732781,60452.0,60451.0,0.082664]
[1726265890900,0.0339329,60452.0,60451.0,0.082664]
[1726265891106,0.0379329,60452.0,60451.0,0.082664]
[1726265891307,0.15132781,60452.0,60451.0,0.082664]
[1726265891703,0.0379329,60452.0,60451.0,0.082664]
[1726265892100,0.006,60452.0,60451.0,0.082664]
[1726265892506,0.006,60452.0,60451.0,0.083664]
[1726265895203,0.006,60452.0,60451.0,0.082664]
[1726265895404,0.006,60452.0,60451.0,0.083664]
[1726265896806,0.006,60452.0,60451.0,1.26261]
[1726265897004,0.006,60452.0,60451.0,0.083664]
[1726265898912,0.088664,60452.0,60451.0,0.001]
[1726265899113,0.86308,60452.0,60432.0,0.3608]
[1726265899315,0.08268,60441.0,60437.0,0.082685]
[1726265899516,0.0724177,60440.0,60437.0,0.082685]
[1726265899711,0.03193346,60439.0,60437.0,0.082685]
[1726265899914,0.14749523,60438.0,60432.0,0.36664695]
[1726265900111,0.11556177,60436.0,60432.0,0.37564695]
[1726265900308,0.3608,60439.0,60435.0,0.082688]
[1726265900509,0.3608,60439.0,60432.0,0.37564695]
[1726265900510,0.1551156,60438.0,60432.0,0.37564695]
[1726265900819,0.3608,60439.0,60424.0,0.3608]
[1726265900820,0.11551964,60435.0,60424.0,0.3608]
[1726265901006,0.08269,60433.0,60432.0,0.009]
[1726265901208,0.44349,60433.0,60432.0,0.009]
[1726265901521,0.56668344,60433.0,60432.0,0.009]
[1726265902516,0.56668344,60433.0,60432.0,0.005]
[1726265902517,0.57168487,60433.0,60432.0,0.005]
[1726265902913,0.52092229,60433.0,60432.0,0.005]
[1726265903110,0.43823229,60433.0,60432.0,0.005]
[1726265903412,0.43823229,60433.0,60432.0,0.003]
[1726265904111,0.57005265,60433.0,60432.0,0.003]
[1726265904315,0.52092229,60433.0,60432.0,0.003]
[1726265904814,0.43823229,60433.0,60432.0,0.003]
[1726265905017,0.43823229,60433.0,60432.0,0.085692]
[1726265905413,0.03693958,60433.0,60432.0,0.085692]
[1726265907108,0.03693958,60433.0,60432.0,0.582132]
[1726265907307,0.005,60433.0,60432.0,0.582132]
[1726265907817,0.005,60433.0,60432.0,0.085692]
[1726265910417,0.005,60433.0,60432.0,0.446492]
[1726265911417,0.3608,60441.0,60440.0,0.082681]
[1726265911621,0.00136,60451.0,60440.0,0.443481]
[1726265911914,0.3608,60457.0,60442.0,0.082678]
[1726265912123,0.3608,60457.0,60441.0,0.0466]
[1726265912124,0.3608,60457.0,60456.0,0.082659]
[1726265912425,0.3608,60464.0,60449.0,0.082668]
[1726265912620,0.3608,60464.0,60462.0,0.082651]
[1726265913119,0.443448,60464.0,60456.0,0.082658]
[1726265913424,0.014,60457.0,60456.0,0.083658]
[1726265914212,0.014,60457.0,60456.0,0.084658]
[1726265915520,0.082649,60463.0,60462.0,0.001]
[1726265916112,0.578809,60463.0,60462.0,0.001]
[1726265916309,0.014,60457.0,60456.0,0.00784971]
[1726265916520,0.014,60457.0,60456.0,0.09050871]
[1726265917019,0.014,60463.0,60462.0,0.001]
[1726265917414,0.014,60463.0,60462.0,0.002]
[1726265917814,0.014,60463.0,60462.0,0.001]
[1726265918608,0.3608,60464.0,60460.0,0.082653]
[1726265919011,0.082648,60465.0,60461.0,0.082651]
[1726265919512,0.014,60463.0,60462.0,0.002]
[1726265920323,0.3608,60463.0,60461.0,0.083651]
[1726265920528,0.3608,60463.0,60462.0,0.082651]
[1726265920713,0.3608,60463.0,60462.0,0.083651]
[1726265922016,0.3748,60463.0,60462.0,0.084651]
[1726265922214,0.44720429,60463.0,60462.0,0.084651]
[1726265922815,0.08640429,60463.0,60462.0,0.167302]
[1726265923016,0.04592798,60463.0,60462.0,0.167302]
[1726265923310,0.04592798,60463.0,60462.0,0.083651]
[1726265923514,0.04592798,60463.0,60462.0,0.084651]
[1726265923911,0.014,60463.0,60462.0,0.084651]
[1726265924320,0.04392798,60463.0,60462.0,0.084651]
[1726265924826,0.04392798,60463.0,60462.0,0.002]
[1726265924827,0.08440149,60463.0,60462.0,0.002]
[1726265925222,0.16705049,60463.0,60462.0,0.002]
[1726265925724,0.082739,60398.0,60375.0,0.082769]
[1726265925933,0.3608,60421.0,60375.0,0.082769]
[1726265925934,0.3608,60379.0,60375.0,0.082769]
[1726265926222,0.15958624,60378.0,60374.0,0.3608]
[1726265926414,0.3608,60390.0,60374.0,0.3608]
[1726265926415,0.07384673,60377.0,60374.0,0.3608]
[1726265926620,0.07384673,60376.0,60374.0,0.00563746]
[1726265926814,0.07384673,60375.0,60368.0,0.3608]
[1726265927016,0.05984673,60374.0,60369.0,0.49692]
[1726265927329,0.05984673,60373.0,60368.0,0.36662802]
[1726265927518,0.11490688,60378.0,60368.0,0.36662802]
[1726265927831,0.11490688,60378.0,60374.0,0.014]
[1726265928322,0.11490688,60380.0,60374.0,0.014]
[1726265928713,0.11490688,60379.0,60374.0,0.014]
[1726265928914,0.11490688,60382.0,60374.0,0.014]
[1726265929113,0.082752,60389.0,60373.0,0.3608]
[1726265929114,0.001,60374.0,60373.0,0.3608]
[1726265929520,0.001,60374.0,60373.0,0.85772]
[1726265929828,0.001,60378.0,60373.0,0.85772]
[1726265929829,0.001,60378.0,60374.0,0.001]
[1726265930318,0.004,60374.0,60373.0,0.3608]
[1726265930723,0.004,60374.0,60373.0,1.45772]
[1726265930921,0.005,60378.0,60373.0,0.85772]
[1726265931120,0.005,60378.0,60374.0,0.001]
[1726265931820,0.001,60374.0,60373.0,0.3618]
[1726265932123,0.3608,60397.0,60374.0,0.49688]
[1726265932328,0.3608,60397.0,60387.0,0.3608]
[1726265932521,0.445052,60403.0,60387.0,0.3608]
[1726265932715,0.445052,60403.0,60387.0,0.443553]
[1726265932716,0.443532,60403.0,60387.0,0.443553]
[1726265933131,0.3608,60396.0,60387.0,0.443553]
[1726265933628,0.3608,60396.0,60387.0,0.3608]
[1726265933822,0.3608,60396.0,60374.0,0.001]
[1726265933823,0.3608,60388.0,60374.0,0.001]
[1726265934023,0.3608,60388.0,60377.0,0.082766]
[1726265935524,0.3608,60388.0,60374.0,0.00726044]
[1726265935723,0.3608,60388.0,60379.0,0.082763]
[1726265936025,0.3618,60388.0,60379.0,0.082763]
[1726265936730,0.3628,60388.0,60379.0,0.082763]
[1726265937029,0.3628,60388.0,60380.0,0.082763]
[1726265937229,0.3618,60388.0,60380.0,0.082763]
[1726265937533,0.3688,60388.0,60374.0,0.014]
[1726265937918,0.3688,60388.0,60380.0,0.082762]
[1726265938127,0.3678,60388.0,60380.0,0.082762]
[1726265938322,0.3678,60388.0,60384.0,0.082757]
[1726265938931,0.3678,60388.0,60373.0,0.36697237]
[1726265939229,0.3688,60388.0,60383.0,0.082758]
[1726265939432,0.3628,60388.0,60383.0,0.082758]
[1726265939626,0.3628,60388.0,60384.0,0.082757]
[1726265939821,0.3628,60388.0,60380.0,0.021]
[1726265940033,0.001,60388.0,60387.0,0.082753]
[1726265940223,0.002,60388.0,60387.0,0.579553]
[1726265940421,0.002,60388.0,60387.0,0.082753]
[1726265941028,0.001,60388.0,60387.0,1.179553]
[1726265941321,0.001,60388.0,60387.0,1.540353]
[1726265941534,0.002,60388.0,60387.0,1.552353]
[1726265941936,0.002,60388.0,60387.0,1.561353]
[1726265942131,0.3608,60402.0,60387.0,1.561353]
[1726265942132,0.3608,60402.0,60401.0,0.082734]
[1726265942433,0.443526,60408.0,60402.0,0.082732]
[1726265942625,0.443526,60408.0,60398.0,0.3608]
[1726265942626,0.443526,60408.0,60403.0,0.08273]
[1726265942825,0.3608,60413.0,60388.0,0.082752]
[1726265942826,0.3608,60413.0,60396.0,0.3608]
[1726265943026,0.082721,60411.0,60403.0,0.08273]
[1726265943222,0.3608,60408.0,60399.0,0.082737]
[1726265943435,0.082731,60404.0,60396.0,0.3608]
[1726265943627,0.08274,60397.0,60391.0,0.443547]
[1726265943934,0.082733,60402.0,60396.0,0.082741]
[1726265944236,0.3608,60403.0,60396.0,0.082741]
[1726265944436,0.3608,60408.0,60396.0,0.082741]
[1726265944437,0.001,60408.0,60402.0,0.7316]
[1726265944735,0.001,60408.0,60407.0,0.443526]
[1726265945435,0.001,60411.0,60410.0,0.082722]
[1726265945838,0.001,60411.0,60405.0,0.082728]
[1726265946132,0.3608,60406.0,60405.0,0.082728]
[1726265947037,0.002,60411.0,60410.0,0.082722]
[1726265947425,0.3608,60415.0,60414.0,0.082716]
[1726265948028,0.3608,60420.0,60419.0,0.082709]
[1726265948836,0.09373527,60499.0,60456.0,0.3608]
[1726265949132,0.5441,60513.0,60419.0,0.6]
[1726265949133,0.3608,60531.0,60501.0,0.3608]
[1726265949340,0.16700716,60532.0,60526.0,0.082562]
[1726265949534,0.047,60572.0,60500.0,0.3608]
[1726265949535,0.16700716,60510.0,60500.0,0.3608]
[1726265949725,0.3608,60518.0,60500.0,0.3608]
[1726265949924,0.1256964,60509.0,60501.0,0.082597]
[1726265950128,0.1256964,60509.0,60505.0,0.3608]
[1726265950331,0.3608,60515.0,60505.0,0.3608]
[1726265950526,0.1256964,60510.0,60505.0,0.3608]
[1726265951528,0.3608,60515.0,60505.0,0.3748]
[1726265951835,0.1256964,60514.0,60505.0,0.3748]
[1726265952223,0.001,60509.0,60505.0,0.3748]
[1726265952832,0.1266964,60509.0,60505.0,0.3748]
[1726265953336,0.001,60509.0,60505.0,0.3748]
[1726265953538,0.001,60515.0,60505.0,0.3888]
[1726265953840,0.1256964,60511.0,60510.0,0.3608]
[1726265954036,0.001,60515.0,60510.0,0.3608]
[1726265954037,0.1256964,60513.0,60510.0,0.3608]
[1726265954533,0.4078,60530.0,60511.0,0.49576]
[1726265954833,0.1256964,60528.0,60526.0,0.3608]
[1726265955039,0.047,60530.0,60520.0,0.3608]
[1726265955040,0.1256964,60522.0,60520.0,0.3608]
[1726265955834,0.047,60530.0,60520.0,0.3508]
[1726265956040,0.1256964,60524.0,60520.0,0.3508]
[1726265956734,0.001,60522.0,60520.0,0.3578]
[1726265956935,0.001,60522.0,60520.0,0.3718]
[1726265957341,0.001,60524.0,60520.0,0.3718]
[1726265957635,0.3608,60533.0,60520.0,0.3718]
[1726265957636,0.05186705,60522.0,60520.0,0.3718]
[1726265957839,0.05186705,60523.0,60520.0,0.3718]
[1726265958141,0.05186705,60528.0,60520.0,0.3718]
[1726265958434,0.3608,60540.0,60526.0,0.3608]
[1726265958741,0.3608,60546.0,60535.0,0.3608]
[1726265958928,0.05186705,60542.0,60535.0,0.3608]
[1726265959335,0.3608,60546.0,60535.0,0.3608]
[1726265959534,0.05186705,60543.0,60535.0,0.3608]
[1726265960136,0.05186705,60543.0,60538.0,0.082546]
[1726265961242,0.05186705,60540.0,60538.0,0.082546]
[1726265961835,0.3608,60546.0,60540.0,0.082543]
[1726265962039,0.05186705,60543.0,60540.0,0.082543]
[1726265962230,0.05186705,60542.0,60535.0,0.3608]
[1726265962538,0.05186705,60536.0,60535.0,0.3608]
[1726265963146,0.05186705,60536.0,60526.0,0.3608]
[1726265963343,0.05186705,60527.0,60526.0,0.3608]